[Event "Titled Tuesday Blitz May 11 2021"]
[White "Nakamura, Hikaru"]
[Black "Hess, Robert"]
[WhiteFideId "2016192"]
[BlackFideId "2022036"]
[WhiteElo "2900"]
[BlackElo "2557"]
[Result "1-0"]
[Round "11"]
[TimeControl "180+1"]
[Date "2021.05.11"]
[WhiteClock "0:02:14"]
[BlackClock "0:00:30"]

1. Nf3 {[%clk 0:03:00]}  g6 {[%clk 0:02:59]} 2. e4 {[%clk 0:03:00]}  Bg7 {[%clk 0:03:00]} 3. d4 {[%clk 0:03:01]}  a6 {[%clk 0:03:00]} 4. Bc4 {[%clk 0:03:01]}  e6 {[%clk 0:03:00]} 5. c3 {[%clk 0:03:00]}  Ne7 {[%clk 0:03:01]} 6. h4 {[%clk 0:02:59]}  h6 {[%clk 0:03:00]} 7. h5 {[%clk 0:02:59]}  g5 {[%clk 0:03:00]} 8. Nbd2 {[%clk 0:02:58]}  b5 {[%clk 0:03:00]} 9. Bd3 {[%clk 0:02:58]}  Bb7 {[%clk 0:03:00]} 10. Nf1 {[%clk 0:02:58]}  d6 {[%clk 0:02:58]} 11. Ng3 {[%clk 0:02:57]}  c5 {[%clk 0:02:59]} 12. a4 {[%clk 0:02:57]}  b4 {[%clk 0:02:53]} 13. Be3 {[%clk 0:02:44]}  Nbc6 {[%clk 0:02:43]} 14. O-O {[%clk 0:02:43]}  bxc3 {[%clk 0:02:15]} 15. bxc3 {[%clk 0:02:41]}  cxd4 {[%clk 0:02:15]} 16. cxd4 {[%clk 0:02:41]}  Na5 {[%clk 0:02:09]} 17. Rb1 {[%clk 0:02:33]}  d5 {[%clk 0:01:48]} 18. e5 {[%clk 0:02:33]}  Bc6 {[%clk 0:01:44]} 19. Nh2 {[%clk 0:02:33]}  Nc4 {[%clk 0:01:31]} 20. Ng4 {[%clk 0:02:33]}  Rc8 {[%clk 0:01:04]} 21. Bc1 {[%clk 0:02:30]}  Bd7 {[%clk 0:00:56]} 22. f4 {[%clk 0:02:30]}  Nc6 {[%clk 0:00:46]} 23. fxg5 {[%clk 0:02:16]}  hxg5 {[%clk 0:00:30]} 24. Bxc4 {[%clk 0:02:13]}  dxc4 {[%clk 0:00:30]} 25. Ne4 {[%clk 0:02:14]} 1-0


[Site "https://www.chess.com"]

[Event "Titled Tuesday Blitz May 11 2021"]
[White "Nazaretyan, Tigran"]
[Black "Kobalia, Mikhail"]
[WhiteFideId "24162345"]
[BlackFideId "4119150"]
[WhiteElo "2247"]
[BlackElo "2569"]
[Result "1-0"]
[Round "11"]
[TimeControl "180+1"]
[Date "2021.05.11"]
[WhiteClock "0:01:14"]
[BlackClock "0:01:13"]

1. d4 {[%clk 0:03:00]}  d5 {[%clk 0:02:58]} 2. c4 {[%clk 0:03:00]}  c6 {[%clk 0:02:58]} 3. Nf3 {[%clk 0:03:00]}  Nf6 {[%clk 0:02:57]} 4. Nc3 {[%clk 0:03:00]}  dxc4 {[%clk 0:02:56]} 5. a4 {[%clk 0:03:00]}  e6 {[%clk 0:02:56]} 6. e3 {[%clk 0:02:58]}  c5 {[%clk 0:02:56]} 7. Bxc4 {[%clk 0:02:58]}  Nc6 {[%clk 0:02:56]} 8. O-O {[%clk 0:02:58]}  cxd4 {[%clk 0:02:57]} 9. exd4 {[%clk 0:02:58]}  Be7 {[%clk 0:02:57]} 10. Be3 {[%clk 0:02:54]}  O-O {[%clk 0:02:56]} 11. Qe2 {[%clk 0:02:53]}  Nb4 {[%clk 0:02:55]} 12. Rfe1 {[%clk 0:02:47]}  b6 {[%clk 0:02:54]} 13. Bg5 {[%clk 0:02:43]}  Bb7 {[%clk 0:02:50]} 14. Rad1 {[%clk 0:02:42]}  Nbd5 {[%clk 0:02:46]} 15. Ne5 {[%clk 0:02:37]}  Rc8 {[%clk 0:02:44]} 16. Rd3 {[%clk 0:02:25]}  Nxc3 {[%clk 0:02:40]} 17. bxc3 {[%clk 0:02:23]}  Nd5 {[%clk 0:02:39]} 18. Bxe7 {[%clk 0:02:17]}  Qxe7 {[%clk 0:02:39]} 19. Rg3 {[%clk 0:02:15]}  f6 {[%clk 0:02:33]} 20. Ng4 {[%clk 0:02:08]}  Kh8 {[%clk 0:01:36]} 21. Bxd5 {[%clk 0:01:29]}  Bxd5 {[%clk 0:01:35]} 22. Ne3 {[%clk 0:01:29]}  Qd7 {[%clk 0:01:16]} 23. Nxd5 {[%clk 0:01:28]}  exd5 {[%clk 0:01:16]} 24. Re3 {[%clk 0:01:15]}  Qxa4 {[%clk 0:01:13]} 25. h4 {[%clk 0:01:14]} 1-0


[Site "https://www.chess.com"]

[Event "Titled Tuesday Blitz May 11 2021"]
[White "Pakleza, Zbigniew"]
[Black "Kollars, Dmitrij"]
[WhiteFideId "1119290"]
[BlackFideId "12909572"]
[WhiteElo "2526"]
[BlackElo "2576"]
[Result "0-1"]
[Round "11"]
[TimeControl "180+1"]
[Date "2021.05.11"]
[WhiteClock "0:00:12"]
[BlackClock "0:00:51"]

1. d4 {[%clk 0:03:00]}  Nf6 {[%clk 0:02:57]} 2. Nf3 {[%clk 0:03:00]}  d5 {[%clk 0:02:54]} 3. Bf4 {[%clk 0:02:58]}  c5 {[%clk 0:02:53]} 4. c3 {[%clk 0:02:58]}  Nc6 {[%clk 0:02:54]} 5. e3 {[%clk 0:02:58]}  Qb6 {[%clk 0:02:53]} 6. Qb3 {[%clk 0:02:58]}  c4 {[%clk 0:02:53]} 7. Qxb6 {[%clk 0:02:58]}  axb6 {[%clk 0:02:53]} 8. Na3 {[%clk 0:02:59]}  Bf5 {[%clk 0:02:43]} 9. Nb5 {[%clk 0:02:45]}  Ra5 {[%clk 0:02:38]} 10. a4 {[%clk 0:02:19]}  e6 {[%clk 0:02:38]} 11. Be2 {[%clk 0:02:15]}  Be7 {[%clk 0:02:37]} 12. Bc7 {[%clk 0:02:05]}  Ra6 {[%clk 0:02:33]} 13. O-O {[%clk 0:01:45]}  Kd7 {[%clk 0:02:32]} 14. Ne5+ {[%clk 0:01:29]}  Nxe5 {[%clk 0:02:29]} 15. Bxe5 {[%clk 0:01:30]}  Bc2 {[%clk 0:02:28]} 16. Bd1 {[%clk 0:01:19]}  Bxd1 {[%clk 0:02:28]} 17. Rfxd1 {[%clk 0:01:20]}  Rc8 {[%clk 0:02:13]} 18. Ra2 {[%clk 0:01:06]}  Ne8 {[%clk 0:02:12]} 19. Rda1 {[%clk 0:01:01]}  f6 {[%clk 0:02:12]} 20. Bg3 {[%clk 0:01:02]}  Bd6 {[%clk 0:02:05]} 21. Kf1 {[%clk 0:00:38]}  Rca8 {[%clk 0:02:03]} 22. Ke2 {[%clk 0:00:32]}  Bxg3 {[%clk 0:02:03]} 23. hxg3 {[%clk 0:00:33]}  Nd6 {[%clk 0:02:04]} 24. Nxd6 {[%clk 0:00:32]}  Kxd6 {[%clk 0:02:04]} 25. g4 {[%clk 0:00:27]}  b5 {[%clk 0:01:58]} 26. Kf3 {[%clk 0:00:23]}  Rxa4 {[%clk 0:01:41]} 27. Rxa4 {[%clk 0:00:23]}  Rxa4 {[%clk 0:01:42]} 28. Rb1 {[%clk 0:00:21]}  Kc6 {[%clk 0:01:33]} 29. e4 {[%clk 0:00:21]}  Ra2 {[%clk 0:01:28]} 30. exd5+ {[%clk 0:00:20]}  Kxd5 {[%clk 0:01:25]} 31. Kf4 {[%clk 0:00:20]}  h6 {[%clk 0:01:20]} 32. g3 {[%clk 0:00:18]}  Ra4 {[%clk 0:01:10]} 33. Ke3 {[%clk 0:00:14]}  b4 {[%clk 0:01:02]} 34. f3 {[%clk 0:00:14]}  b3 {[%clk 0:00:58]} 35. Kd2 {[%clk 0:00:14]}  Ra2 {[%clk 0:00:57]} 36. Ke3 {[%clk 0:00:14]}  b5 {[%clk 0:00:57]} 37. Kd2 {[%clk 0:00:13]}  b4 {[%clk 0:00:50]} 38. cxb4 {[%clk 0:00:14]}  Kxd4 {[%clk 0:00:51]} 39. f4 {[%clk 0:00:12]}  c3+ {[%clk 0:00:51]} 0-1


[Site "https://www.chess.com"]

[Event "Titled Tuesday Blitz May 11 2021"]
[White "Sethuraman, S.P."]
[Black "Solon, Nathan"]
[WhiteFideId "5021596"]
[BlackFideId "2017229"]
[WhiteElo "2477"]
[BlackElo "2656"]
[Result "0-1"]
[Round "11"]
[TimeControl "180+1"]
[Date "2021.05.11"]
[WhiteClock "0:01:08"]
[BlackClock "0:00:32"]

1. e4 {[%clk 0:03:00]}  c5 {[%clk 0:02:59]} 2. Nf3 {[%clk 0:03:01]}  d6 {[%clk 0:03:00]} 3. Bb5+ {[%clk 0:03:01]}  Nd7 {[%clk 0:03:00]} 4. a4 {[%clk 0:03:01]}  Nf6 {[%clk 0:02:59]} 5. Nc3 {[%clk 0:03:01]}  g6 {[%clk 0:02:58]} 6. O-O {[%clk 0:02:59]}  Bg7 {[%clk 0:02:58]} 7. a5 {[%clk 0:02:59]}  O-O {[%clk 0:02:58]} 8. Re1 {[%clk 0:02:59]}  a6 {[%clk 0:02:50]} 9. Bf1 {[%clk 0:02:59]}  b5 {[%clk 0:02:50]} 10. axb6 {[%clk 0:02:58]}  Bb7 {[%clk 0:02:45]} 11. d4 {[%clk 0:02:57]}  cxd4 {[%clk 0:02:43]} 12. Nxd4 {[%clk 0:02:57]}  Qxb6 {[%clk 0:02:30]} 13. Nb3 {[%clk 0:02:57]}  Rfc8 {[%clk 0:02:26]} 14. Be3 {[%clk 0:02:52]}  Qd8 {[%clk 0:02:21]} 15. f3 {[%clk 0:02:41]}  a5 {[%clk 0:02:13]} 16. Qd2 {[%clk 0:02:25]}  Ne5 {[%clk 0:02:11]} 17. Qf2 {[%clk 0:02:23]}  Nfd7 {[%clk 0:01:54]} 18. Nd2 {[%clk 0:02:22]}  Ba6 {[%clk 0:01:45]} 19. Bxa6 {[%clk 0:02:15]}  Rxa6 {[%clk 0:01:46]} 20. Ra2 {[%clk 0:02:16]}  Nc4 {[%clk 0:01:40]} 21. Nxc4 {[%clk 0:02:13]}  Rxc4 {[%clk 0:01:41]} 22. Nd5 {[%clk 0:02:07]}  e6 {[%clk 0:01:35]} 23. Nf4 {[%clk 0:02:07]}  Rac6 {[%clk 0:01:21]} 24. c3 {[%clk 0:01:43]}  Nc5 {[%clk 0:01:21]} 25. Bxc5 {[%clk 0:01:39]}  R4xc5 {[%clk 0:01:21]} 26. Nd3 {[%clk 0:01:36]}  Rb5 {[%clk 0:01:21]} 27. Ra4 {[%clk 0:01:35]}  d5 {[%clk 0:01:15]} 28. e5 {[%clk 0:01:35]}  Bf8 {[%clk 0:01:13]} 29. h4 {[%clk 0:01:34]}  h5 {[%clk 0:01:11]} 30. Kh2 {[%clk 0:01:34]}  Rc4 {[%clk 0:01:09]} 31. Rxc4 {[%clk 0:01:28]}  dxc4 {[%clk 0:01:10]} 32. Nf4 {[%clk 0:01:29]}  Bc5 {[%clk 0:01:02]} 33. Qe2 {[%clk 0:01:25]}  Qxh4+ {[%clk 0:01:00]} 34. Nh3 {[%clk 0:01:19]}  Rxb2 {[%clk 0:00:35]} 35. Qxb2 {[%clk 0:01:09]}  Qxe1 {[%clk 0:00:35]} 36. Qb5 {[%clk 0:01:09]}  Qxe5+ {[%clk 0:00:33]} 37. f4 {[%clk 0:01:08]}  Bg1+ {[%clk 0:00:32]} 0-1


[Site "https://www.chess.com"]

[Event "Titled Tuesday Blitz May 11 2021"]
[White "Shimanov, Aleksandr"]
[Black "Hjartarson, Johann"]
[WhiteFideId "4198603"]
[BlackFideId "2300044"]
[WhiteElo "2596"]
[BlackElo "2502"]
[Result "0-1"]
[Round "11"]
[TimeControl "180+1"]
[Date "2021.05.11"]
[WhiteClock "0:00:02"]
[BlackClock "0:00:37"]

1. e4 {[%clk 0:03:00]}  g6 {[%clk 0:02:58]} 2. d4 {[%clk 0:02:59]}  Bg7 {[%clk 0:02:58]} 3. Nc3 {[%clk 0:02:59]}  d6 {[%clk 0:02:59]} 4. Bg5 {[%clk 0:02:58]}  a6 {[%clk 0:02:57]} 5. a4 {[%clk 0:02:48]}  Nd7 {[%clk 0:02:57]} 6. Bc4 {[%clk 0:02:38]}  c5 {[%clk 0:02:48]} 7. dxc5 {[%clk 0:02:25]}  Nxc5 {[%clk 0:02:48]} 8. Nge2 {[%clk 0:02:24]}  Nf6 {[%clk 0:02:46]} 9. f3 {[%clk 0:02:24]}  O-O {[%clk 0:02:44]} 10. O-O {[%clk 0:02:17]}  Bd7 {[%clk 0:02:40]} 11. Be3 {[%clk 0:02:12]}  Rc8 {[%clk 0:02:38]} 12. Ba2 {[%clk 0:02:04]}  b5 {[%clk 0:02:38]} 13. axb5 {[%clk 0:02:03]}  axb5 {[%clk 0:02:38]} 14. b4 {[%clk 0:01:46]}  Ne6 {[%clk 0:02:24]} 15. Rb1 {[%clk 0:01:42]}  Re8 {[%clk 0:02:15]} 16. Qd2 {[%clk 0:01:41]}  Qc7 {[%clk 0:02:12]} 17. Rfc1 {[%clk 0:01:36]}  Qb7 {[%clk 0:02:08]} 18. Nd5 {[%clk 0:01:34]}  Nxd5 {[%clk 0:02:05]} 19. Bxd5 {[%clk 0:01:35]}  Qb8 {[%clk 0:02:02]} 20. c3 {[%clk 0:01:28]}  Nc7 {[%clk 0:02:01]} 21. Bb3 {[%clk 0:01:28]}  Be6 {[%clk 0:02:01]} 22. Bd1 {[%clk 0:01:00]}  Bc4 {[%clk 0:01:58]} 23. Nd4 {[%clk 0:01:00]}  Qb7 {[%clk 0:01:52]} 24. Nb3 {[%clk 0:00:59]}  d5 {[%clk 0:01:37]} 25. Na5 {[%clk 0:00:34]}  Qa6 {[%clk 0:01:37]} 26. Bc2 {[%clk 0:00:29]}  Red8 {[%clk 0:01:30]} 27. Qe1 {[%clk 0:00:25]}  dxe4 {[%clk 0:01:25]} 28. Bxe4 {[%clk 0:00:24]}  Bd5 {[%clk 0:01:21]} 29. Bc5 {[%clk 0:00:11]}  Rd7 {[%clk 0:01:12]} 30. Nb3 {[%clk 0:00:06]}  Bxe4 {[%clk 0:01:08]} 31. Qxe4 {[%clk 0:00:06]}  Ne6 {[%clk 0:01:08]} 32. Qe3 {[%clk 0:00:04]}  Rcd8 {[%clk 0:01:03]} 33. Re1 {[%clk 0:00:04]}  Rd3 {[%clk 0:00:56]} 34. Qe4 {[%clk 0:00:04]}  Bxc3 {[%clk 0:00:54]} 35. Rec1 {[%clk 0:00:02]}  Bf6 {[%clk 0:00:51]} 36. h3 {[%clk 0:00:03]}  Qa2 {[%clk 0:00:46]} 37. Na5 {[%clk 0:00:02]}  Rd2 {[%clk 0:00:45]} 38. Qg4 {[%clk 0:00:02]}  h5 {[%clk 0:00:44]} 39. Qg3 {[%clk 0:00:02]}  Bg5 {[%clk 0:00:38]} 40. Rf1 {[%clk 0:00:02]}  Bf4 {[%clk 0:00:37]} 0-1


[Site "https://www.chess.com"]

[Event "Titled Tuesday Blitz May 11 2021"]
[White "Tari, Aryan"]
[Black "Murzin, Volodar"]
[WhiteFideId "1510045"]
[BlackFideId "44155573"]
[WhiteElo "2656"]
[BlackElo "2541"]
[Result "1-0"]
[Round "11"]
[TimeControl "180+1"]
[Date "2021.05.11"]
[WhiteClock "0:00:06"]
[BlackClock "0:00:01"]

1. Nf3 {[%clk 0:03:00]}  Nf6 {[%clk 0:02:58]} 2. b3 {[%clk 0:02:49]}  d5 {[%clk 0:02:53]} 3. Bb2 {[%clk 0:02:35]}  c6 {[%clk 0:02:49]} 4. e3 {[%clk 0:02:30]}  Bg4 {[%clk 0:02:49]} 5. Be2 {[%clk 0:02:28]}  Nbd7 {[%clk 0:02:46]} 6. O-O {[%clk 0:02:24]}  Bxf3 {[%clk 0:02:43]} 7. Bxf3 {[%clk 0:02:24]}  e5 {[%clk 0:02:44]} 8. c4 {[%clk 0:02:17]}  Bd6 {[%clk 0:02:40]} 9. cxd5 {[%clk 0:02:13]}  cxd5 {[%clk 0:02:41]} 10. d3 {[%clk 0:02:09]}  O-O {[%clk 0:02:25]} 11. Nc3 {[%clk 0:02:06]}  Qa5 {[%clk 0:02:02]} 12. a3 {[%clk 0:01:59]}  d4 {[%clk 0:02:00]} 13. Ne4 {[%clk 0:01:44]}  Nxe4 {[%clk 0:01:56]} 14. dxe4 {[%clk 0:01:45]}  Rac8 {[%clk 0:01:24]} 15. b4 {[%clk 0:01:32]}  Qc7 {[%clk 0:01:19]} 16. Rc1 {[%clk 0:01:18]}  Qb8 {[%clk 0:01:05]} 17. Rxc8 {[%clk 0:01:15]}  Rxc8 {[%clk 0:01:05]} 18. exd4 {[%clk 0:01:16]}  exd4 {[%clk 0:01:05]} 19. g3 {[%clk 0:01:11]}  Rd8 {[%clk 0:00:44]} 20. Bxd4 {[%clk 0:00:56]}  Ne5 {[%clk 0:00:36]} 21. Be2 {[%clk 0:00:55]}  Nc6 {[%clk 0:00:36]} 22. Bc4 {[%clk 0:00:42]}  Nxd4 {[%clk 0:00:09]} 23. Qxd4 {[%clk 0:00:43]}  Bxg3 {[%clk 0:00:09]} 24. Bxf7+ {[%clk 0:00:43]}  Kh8 {[%clk 0:00:08]} 25. Qe3 {[%clk 0:00:35]}  Bxh2+ {[%clk 0:00:08]} 26. Kg2 {[%clk 0:00:35]}  Bf4 {[%clk 0:00:08]} 27. Qh3 {[%clk 0:00:27]}  Qe5 {[%clk 0:00:09]} 28. Qf5 {[%clk 0:00:24]}  Qxf5 {[%clk 0:00:06]} 29. exf5 {[%clk 0:00:25]}  Be5 {[%clk 0:00:05]} 30. Re1 {[%clk 0:00:23]}  Bb2 {[%clk 0:00:04]} 31. Re7 {[%clk 0:00:19]}  Rb8 {[%clk 0:00:04]} 32. a4 {[%clk 0:00:15]}  Bc3 {[%clk 0:00:04]} 33. b5 {[%clk 0:00:13]}  Bb4 {[%clk 0:00:03]} 34. Rd7 {[%clk 0:00:11]}  Ba5 {[%clk 0:00:04]} 35. Bd5 {[%clk 0:00:09]}  Bb6 {[%clk 0:00:03]} 36. Bxb7 {[%clk 0:00:06]}  h6 {[%clk 0:00:04]} 37. Bc6 {[%clk 0:00:06]}  Rf8 {[%clk 0:00:04]} 38. Be4 {[%clk 0:00:06]}  Re8 {[%clk 0:00:04]} 39. f3 {[%clk 0:00:07]}  Rc8 {[%clk 0:00:03]} 40. Kh3 {[%clk 0:00:06]}  Rc4 {[%clk 0:00:03]} 41. Rb7 {[%clk 0:00:06]}  Kg8 {[%clk 0:00:01]} 42. Bd5+ {[%clk 0:00:06]} 1-0


[Site "https://www.chess.com"]

[Event "Titled Tuesday Blitz May 11 2021"]
[White "Wagner, Dennis"]
[Black "Papasimakopoulos, Alexandros"]
[WhiteFideId "24650684"]
[BlackFideId "4244125"]
[WhiteElo "2355"]
[BlackElo "2352"]
[Result "0-1"]
[Round "11"]
[TimeControl "180+1"]
[Date "2021.05.11"]
[WhiteClock "0:00:12"]
[BlackClock "0:00:10"]

1. e4 {[%clk 0:03:00]}  e6 {[%clk 0:03:00]} 2. d4 {[%clk 0:03:00]}  d5 {[%clk 0:03:00]} 3. Nc3 {[%clk 0:03:01]}  Bb4 {[%clk 0:03:00]} 4. e5 {[%clk 0:03:01]}  b6 {[%clk 0:03:00]} 5. a3 {[%clk 0:03:01]}  Bf8 {[%clk 0:03:01]} 6. Bb5+ {[%clk 0:02:46]}  Bd7 {[%clk 0:03:01]} 7. Bxd7+ {[%clk 0:02:18]}  Nxd7 {[%clk 0:02:56]} 8. Nce2 {[%clk 0:02:18]}  c5 {[%clk 0:02:55]} 9. c3 {[%clk 0:02:19]}  Ne7 {[%clk 0:02:55]} 10. Nf3 {[%clk 0:02:13]}  Nc6 {[%clk 0:02:55]} 11. O-O {[%clk 0:02:09]}  Be7 {[%clk 0:02:56]} 12. b4 {[%clk 0:02:06]}  O-O {[%clk 0:02:53]} 13. Be3 {[%clk 0:02:04]}  f6 {[%clk 0:02:53]} 14. exf6 {[%clk 0:02:02]}  Nxf6 {[%clk 0:02:50]} 15. Nf4 {[%clk 0:01:57]}  Qd7 {[%clk 0:02:45]} 16. Nd3 {[%clk 0:01:51]}  cxd4 {[%clk 0:02:36]} 17. Nfe5 {[%clk 0:01:49]}  Qc7 {[%clk 0:02:13]} 18. cxd4 {[%clk 0:01:49]}  Nxe5 {[%clk 0:02:11]} 19. Nxe5 {[%clk 0:01:50]}  Bd6 {[%clk 0:02:08]} 20. Rc1 {[%clk 0:01:48]}  Qe7 {[%clk 0:02:07]} 21. Bg5 {[%clk 0:01:34]}  Qe8 {[%clk 0:01:59]} 22. Bxf6 {[%clk 0:01:11]}  Rxf6 {[%clk 0:02:00]} 23. Re1 {[%clk 0:01:08]}  Rc8 {[%clk 0:01:54]} 24. Qe2 {[%clk 0:00:56]}  h6 {[%clk 0:01:48]} 25. g3 {[%clk 0:00:54]}  Rf5 {[%clk 0:01:24]} 26. Qa6 {[%clk 0:00:49]}  Rxc1 {[%clk 0:01:14]} 27. Rxc1 {[%clk 0:00:50]}  Rf8 {[%clk 0:01:13]} 28. Qxa7 {[%clk 0:00:45]}  Bxe5 {[%clk 0:01:09]} 29. dxe5 {[%clk 0:00:46]}  b5 {[%clk 0:01:08]} 30. Rc7 {[%clk 0:00:43]}  Qg6 {[%clk 0:01:08]} 31. h4 {[%clk 0:00:39]}  Qb1+ {[%clk 0:01:02]} 32. Kh2 {[%clk 0:00:38]}  Qg6 {[%clk 0:00:56]} 33. Qe3 {[%clk 0:00:27]}  Qf5 {[%clk 0:00:50]} 34. Kg2 {[%clk 0:00:25]}  Rd8 {[%clk 0:00:43]} 35. Qf4 {[%clk 0:00:12]}  Qxf4 {[%clk 0:00:38]} 36. gxf4 {[%clk 0:00:13]}  d4 {[%clk 0:00:33]} 37. Kf3 {[%clk 0:00:09]}  d3 {[%clk 0:00:33]} 38. Rc1 {[%clk 0:00:09]}  Ra8 {[%clk 0:00:32]} 39. Rc3 {[%clk 0:00:08]}  d2 {[%clk 0:00:32]} 40. Ke2 {[%clk 0:00:08]}  Rd8 {[%clk 0:00:30]} 41. Kd1 {[%clk 0:00:09]}  Rd4 {[%clk 0:00:30]} 42. Rc5 {[%clk 0:00:08]}  Rd3 {[%clk 0:00:22]} 43. Rxb5 {[%clk 0:00:09]}  Rxa3 {[%clk 0:00:22]} 44. Kxd2 {[%clk 0:00:09]}  Rf3 {[%clk 0:00:22]} 45. Ke2 {[%clk 0:00:09]}  Rxf4 {[%clk 0:00:22]} 46. h5 {[%clk 0:00:10]}  Rh4 {[%clk 0:00:20]} 47. Ke3 {[%clk 0:00:10]}  Rxh5 {[%clk 0:00:20]} 48. Rc5 {[%clk 0:00:11]}  Rh3+ {[%clk 0:00:19]} 49. f3 {[%clk 0:00:10]}  Rh1 {[%clk 0:00:20]} 50. b5 {[%clk 0:00:10]}  Rb1 {[%clk 0:00:20]} 51. Kd4 {[%clk 0:00:10]}  h5 {[%clk 0:00:20]} 52. Kc4 {[%clk 0:00:11]}  h4 {[%clk 0:00:20]} 53. Rc8+ {[%clk 0:00:10]}  Kh7 {[%clk 0:00:19]} 54. Ra8 {[%clk 0:00:11]}  g5 {[%clk 0:00:15]} 55. Ra2 {[%clk 0:00:10]}  Kg6 {[%clk 0:00:15]} 56. Kc5 {[%clk 0:00:11]}  Kf5 {[%clk 0:00:15]} 57. b6 {[%clk 0:00:11]}  Kxe5 {[%clk 0:00:15]} 58. Kc6 {[%clk 0:00:11]}  Kf4 {[%clk 0:00:15]} 59. b7 {[%clk 0:00:12]}  Kxf3 {[%clk 0:00:15]} 60. Ra3+ {[%clk 0:00:11]}  Kg2 {[%clk 0:00:13]} 61. Ra2+ {[%clk 0:00:11]}  Kg3 {[%clk 0:00:13]} 62. Ra3+ {[%clk 0:00:12]}  Kg4 {[%clk 0:00:11]} 63. Ra4+ {[%clk 0:00:11]}  Kh5 {[%clk 0:00:11]} 64. Ra5 {[%clk 0:00:11]}  Rxb7 {[%clk 0:00:11]} 65. Kxb7 {[%clk 0:00:12]}  h3 {[%clk 0:00:12]} 66. Kc6 {[%clk 0:00:12]}  h2 {[%clk 0:00:07]} 67. Ra1 {[%clk 0:00:13]}  g4 {[%clk 0:00:07]} 68. Kd6 {[%clk 0:00:10]}  g3 {[%clk 0:00:08]} 69. Ke5 {[%clk 0:00:10]}  g2 {[%clk 0:00:08]} 70. Kf4 {[%clk 0:00:10]}  g1=Q {[%clk 0:00:09]} 71. Ra5+ {[%clk 0:00:11]}  Kh4 {[%clk 0:00:08]} 72. Ra8 {[%clk 0:00:11]}  Qg3+ {[%clk 0:00:08]} 73. Ke4 {[%clk 0:00:11]}  Qg2+ {[%clk 0:00:09]} 74. Kf4 {[%clk 0:00:12]}  Qxa8 {[%clk 0:00:10]} 0-1


[Site "https://www.chess.com"]

[Event "Titled Tuesday Blitz May 11 2021"]
[White "Xiong, Jeffery"]
[Black "Quparadze, Giga"]
[WhiteFideId "2047640"]
[BlackFideId "13602250"]
[WhiteElo "2724"]
[BlackElo "2658"]
[Result "1-0"]
[Round "11"]
[TimeControl "180+1"]
[Date "2021.05.11"]
[WhiteClock "0:00:59"]
[BlackClock "0:00:47"]

1. d4 {[%clk 0:03:00]}  Nf6 {[%clk 0:02:58]} 2. Nf3 {[%clk 0:03:01]}  e6 {[%clk 0:02:58]} 3. Bf4 {[%clk 0:02:59]}  b6 {[%clk 0:02:58]} 4. e3 {[%clk 0:02:58]}  Bb7 {[%clk 0:02:58]} 5. Nbd2 {[%clk 0:02:59]}  g6 {[%clk 0:02:57]} 6. Bd3 {[%clk 0:02:54]}  Bg7 {[%clk 0:02:57]} 7. O-O {[%clk 0:02:53]}  O-O {[%clk 0:02:57]} 8. h3 {[%clk 0:02:54]}  d5 {[%clk 0:02:56]} 9. c4 {[%clk 0:02:42]}  c5 {[%clk 0:02:56]} 10. dxc5 {[%clk 0:02:38]}  bxc5 {[%clk 0:02:57]} 11. Rc1 {[%clk 0:02:39]}  Nh5 {[%clk 0:02:51]} 12. Bh2 {[%clk 0:02:35]}  Nd7 {[%clk 0:02:44]} 13. cxd5 {[%clk 0:02:22]}  exd5 {[%clk 0:02:45]} 14. Bd6 {[%clk 0:02:22]}  Re8 {[%clk 0:02:44]} 15. Bxc5 {[%clk 0:02:22]}  Bxb2 {[%clk 0:02:44]} 16. Rb1 {[%clk 0:02:11]}  Nxc5 {[%clk 0:02:38]} 17. Rxb2 {[%clk 0:02:11]}  Re7 {[%clk 0:02:02]} 18. Nb3 {[%clk 0:02:07]}  Ne4 {[%clk 0:02:00]} 19. Nbd4 {[%clk 0:02:05]}  Nhf6 {[%clk 0:01:57]} 20. Qa1 {[%clk 0:02:03]}  Rc8 {[%clk 0:01:55]} 21. Rfb1 {[%clk 0:02:00]}  Rcc7 {[%clk 0:01:54]} 22. Nb5 {[%clk 0:01:56]}  Rcd7 {[%clk 0:01:53]} 23. Nxa7 {[%clk 0:01:53]}  Qa5 {[%clk 0:01:46]} 24. Nb5 {[%clk 0:01:49]}  Nc5 {[%clk 0:01:42]} 25. Bf1 {[%clk 0:01:45]}  d4 {[%clk 0:01:40]} 26. Nbxd4 {[%clk 0:01:41]}  Nfe4 {[%clk 0:01:37]} 27. Rc2 {[%clk 0:01:38]}  h5 {[%clk 0:01:34]} 28. Rb5 {[%clk 0:01:38]}  Qa3 {[%clk 0:01:33]} 29. Qc1 {[%clk 0:01:32]}  Qa7 {[%clk 0:01:23]} 30. Rbxc5 {[%clk 0:01:27]}  Nxc5 {[%clk 0:01:23]} 31. Rxc5 {[%clk 0:01:28]}  Qxa2 {[%clk 0:01:20]} 32. Ne5 {[%clk 0:01:10]}  Rd6 {[%clk 0:01:05]} 33. Bc4 {[%clk 0:01:09]}  Qa7 {[%clk 0:01:01]} 34. Bxf7+ {[%clk 0:01:07]}  Kg7 {[%clk 0:01:01]} 35. Bxg6 {[%clk 0:01:00]}  Qa8 {[%clk 0:00:47]} 36. Nf5+ {[%clk 0:00:59]} 1-0


[Site "https://www.chess.com"]